Cogmind - Beta 11.1 @@@ ROGUE MODE // 2022.04.24 @ 21:47:58 Player: Lyra Result: Destroyed by H-66 Slayer with Gauss Rifle Performance ------------- Evolutions (4) 2000 Regions Visited (14) 2800 Robots Destroyed (203) 1015 Value Destroyed (8693) 8693 Prototype IDs (39) 780 Alien Tech Used (0) 0 Bonus (3271) 3271 TOTAL SCORE: 18559 Bonus ------- High Alert Combat Kills 482 Follower Combat Kills 509 Entered Garrisons 600 Used RIF Installer 1500 Aligned with FarCom 300 Friendly Fire -120 Cogmind --------- Core Integrity 0/850 Matter 180/300 Energy 59/100 System Corruption 13% Temperature Cool (0) Movement Walking (260) Ox2 Location -6/Factory Parts ------- > --- POWER (1) -------- (None) > --- PROPULSION (6) --- Armored Leg Armored Leg > --- UTILITY (6) ------ Huge Storage Unit Enhanced Optical Array Improved Signal Interpreter Relay Coupler [Grunt] (10) Relay Coupler [Sentry] (9) > --- WEAPON (2) ------- Tri-rail Accelerator > --- INVENTORY (25) --- Light Angular Momentum Engine Light Fission Core Medium Treads Carbon-fiber Leg Flexi-carbon Leg Flexi-carbon Leg Advanced Heat Sink Advanced Coolant Injector Large Battery (200) Experimental Sensor Array Improved Terrain Scanner Advanced Terrain Scan Processor Relay Coupler [NC] (33) Relay Coupler [NC] (25) Relay Coupler [Grunt] (31) Relay Coupler [Sentry] (26) Relay Coupler [Sentry] (21) Beamcaster Remote Datajack Peak State ------------ > --- POWER ------------ Reinforced Deuterium Engine > --- PROPULSION ------- Flexi-carbon Leg Flexi-carbon Leg Armored Leg Armored Leg Armored Leg Improved VSS Leg > --- UTILITY ---------- Advanced Heat Sink Advanced Coolant Injector Huge Storage Unit Armor Integrity Analyzer Relay Coupler [Sentry] Relay Coupler [Hunter] > --- WEAPON ----------- Guided Plasma Cannon Remote Datajack > --- INVENTORY -------- Light Fission Core Light Antimatter Reactor Advanced Heat Sink Large Battery Energy Well Enhanced Optical Array Experimental Sensor Array Improved Signal Interpreter Improved Terrain Scanner Advanced Terrain Scan Processor Relay Coupler [NC] Relay Coupler [NC] Relay Coupler [NC] Relay Coupler [Grunt] Relay Coupler [Grunt] Relay Coupler [Sentry] Relay Coupler [Sentry] Arc Projector Gauss Rifle Gauss Rifle Gauss Rifle Flak Gun Flak Gun Mini Grenade Launcher Heavy Hammer [Rating: 81] Favorites ----------- Power Nuclear Core Engine Heavy Ion Engine Power Core Nuclear Core Reactor Light Antimatter Reactor Propulsion Light Treads Treads Light Treads Leg Aluminum Leg Wheel Compact Wheel Utility Huge Storage Unit Device Improved Heat Sink Storage Huge Storage Unit Processor Targeting Computer Hackware Relay Coupler [Hunter] Protection Improved Medium Armor Plating Weapon Heavy Assault Rifle Energy Gun Beam Rifle Energy Cannon Heavy Particle Cannon Ballistic Gun Heavy Assault Rifle Ballistic Cannon Advanced Assault Cannon Launcher Mini Grenade Launcher Special Weapon Remote Datajack Impact Weapon Heavy Hammer Build | -11 -10 -10 -9 -9 -9 -8 -8 -7 -7 -7 -7 -6 -6 -6 ------- Run | Scr Mat Min Mat Min Exi Min Mat Fac Gar Fac Gar Fac Gar Fac Slots Evolved 8 | . . . 2 . . . 2 2 . . . 2 . . Power . | . . . . . . . . . . . . . . . Propulsion 4 | . . . 1 . . . 1 1 . . . 1 . . Utility 4 | . . . 1 . . . 1 1 . . . 1 . . Weapon . | . . . . . . . . . . . . . . . Parts Attached 249 | 6 14 8 17 8 . 4 59 10 4 . 18 36 35 30 Power 16 | 1 1 2 2 . . 1 2 1 . . . 3 . 3 Engine 10 | 1 1 2 1 . . . 2 . . . . 2 . 1 Core 5 | . . . 1 . . 1 . 1 . . . 1 . 1 Reactor 1 | . . . . . . . . . . . . . . 1 Propulsion 74 | 2 7 2 8 5 . . 18 1 . . 7 7 9 8 Treads 20 | . . . . . . . 14 1 . . 2 1 2 . Leg 52 | 2 7 2 8 5 . . 3 . . . 5 5 7 8 Wheel 2 | . . . . . . . 1 . . . . 1 . . Hover . | . . . . . . . . . . . . . . . Flight . | . . . . . . . . . . . . . . . Utility 72 | 1 2 1 4 . . 1 17 2 2 . 5 12 16 9 Device 36 | . 1 . . . . 1 8 1 1 . 3 6 11 4 Storage 5 | 1 1 . . . . . 1 . . . . 2 . . Processor 7 | . . 1 . . . . 1 . . . . . 2 3 Hackware 6 | . . . . . . . . . . . . 2 2 2 Protection 18 | . . . 4 . . . 7 1 1 . 2 2 1 . Artifact . | . . . . . . . . . . . . . . . Weapon 87 | 2 4 3 3 3 . 2 22 6 2 . 6 14 10 10 Energy Gun 22 | 2 4 1 . 1 . 1 2 . 1 . 2 6 . 2 Energy Cannon 18 | . . . . . . . 11 3 1 . . . 2 1 Ballistic Gun 19 | . . 2 3 1 . . 5 1 . . . 3 4 . Ballistic Cannon 8 | . . . . . . . 1 2 . . 1 1 1 2 Launcher 13 | . . . . 1 . 1 3 . . . 3 1 . 4 Special Weapon 6 | . . . . . . . . . . . . 2 3 1 Impact Weapon 1 | . . . . . . . . . . . . 1 . . Slashing Weapon . | . . . . . . . . . . . . . . . Piercing Weapon . | . . . . . . . . . . . . . . . Special Melee Weapon . | . . . . . . . . . . . . . . . Unidentified Prototypes 8 | . . . . . . . 4 2 . . . . . 2 Corrupted Parts 1 | . . . . . . . . . . . . . 1 . System Corruption 5 | . . . . . . . . . . . . . 5 . Parts Lost 80 | . 6 6 6 2 . 2 12 1 . . 7 12 14 12 Power 7 | . 1 1 . . . 1 1 . . . . 1 . 2 Propulsion 37 | . 3 2 3 1 . . 6 1 . . 4 5 7 5 Utility 19 | . . 1 2 . . 1 3 . . . 3 3 4 2 Weapon 17 | . 2 2 1 1 . . 2 . . . . 3 3 3 Highest Loss Streak 12 | . 4 5 1 1 . 2 4 1 . . 3 4 12 11 To Critical Strikes 2 | . . . . . . . . . . . . . . 2 Average Slot Usage (%) 95 | . 94 85 98 98 100 99 96 93 92 92 90 96 95 97 Engine 4 | . 13 10 7 . . . 6 4 . . . 5 6 1 Core 3 | . . . 3 11 11 10 2 2 7 7 7 . . 1 Treads 12 | . . . . . . . 33 34 30 30 15 3 3 . Leg 20 | . 27 26 32 31 33 33 1 . . . 15 32 31 38 Device 9 | . 6 . . . . 10 12 12 17 15 19 14 16 4 Storage 9 | . 16 14 11 11 11 11 9 7 7 7 7 10 6 6 Processor 5 | . . 6 11 11 11 11 7 4 . . . . 5 10 Hackware 2 | . . . . . . . . . . . . 2 6 16 Protection 6 | . . . 10 11 11 . 5 9 12 15 10 10 2 . Energy Gun 6 | . 28 5 . 3 11 22 5 1 3 7 4 8 1 . Energy Cannon 2 | . . . . . . . 8 7 3 7 . . 3 4 Ballistic Gun 5 | . . 19 21 18 11 . 3 2 3 . . 2 5 . Naked Turns . | . . . . . . . . . . . . . . . Heaviest Build 125 | 12 51 47 56 56 56 54 115 119 119 115 115 125 119 114 Greatest Support 112 | 20 20 20 33 39 36 36 112 100 80 80 80 100 103 104 Greatest Overweight (x) 10 | 3 2 2 2 2 1 1 10 1 1 1 10 7 5 1 Average Overweight (x) 1 | . 1 2 1 1 1 1 1 1 1 1 2 1 1 . Largest Inventory Capacity 25 | 8 20 20 20 20 20 20 25 25 25 25 25 25 25 25 Average Capacity 22 | 7 16 20 20 20 20 20 24 25 25 25 25 25 25 25 Most Carried 25 | 2 11 15 20 20 20 20 25 25 25 25 25 25 25 25 Average Carried 21 | . 8 11 19 19 19 19 23 23 24 25 24 24 22 24 Final Capacity 25 | 8 20 20 20 20 20 20 25 25 25 25 25 25 25 25 Final Carried 25 | 2 11 15 20 19 20 20 21 25 25 25 25 25 25 19 Class Distribution -------------------- 69% | Scavenger-Mutant 20% | Mutant 10% | Bothacker-Mutant Dominant Class ---------------- Mutant | -10/Materials Scavenger-Mutant | -10/Mines Scavenger-Mutant | -9/Materials Scavenger-Mutant | -9/Mines Scavenger-Mutant | -9/Exiles Scavenger-Mutant | -8/Mines Scavenger-Mutant | -8/Materials Scavenger-Mutant | -7/Factory Scavenger-Mutant | -7/Garrison Scavenger-Mutant | -7/Factory Scavenger-Mutant | -7/Garrison Scavenger-Mutant | -6/Factory Scavenger-Mutant | -6/Garrison Bothacker-Mutant | -6/Factory Resources | -11 -10 -10 -9 -9 -9 -8 -8 -7 -7 -7 -7 -6 -6 -6 ----------- Run | Scr Mat Min Mat Min Exi Min Mat Fac Gar Fac Gar Fac Gar Fac Matter Collected 4504 | 197 193 91 476 231 . 60 768 103 175 . 712 443 643 412 Remotely . | . . . . . . . . . . . . . . . Salvage Created 8408 | . 615 70 1183 510 . 120 1960 275 222 . 769 622 867 1195 Parts 366 | . 34 . 81 23 . 3 80 10 10 . 42 23 23 37 Haulers Intercepted 5 | . 1 . 1 . . . 2 . . . . . . 1 Recyclers Shooed 11 | . . . 1 1 . . 1 2 . . . 1 . 5 Parts Field Recycled . | . . . . . . . . . . . . . . . Retrieved Matter . | . . . . . . . . . . . . . . . Parts Self-Destructed . | . . . . . . . . . . . . . . . Prevented . | . . . . . . . . . . . . . . . Kills | -11 -10 -10 -9 -9 -9 -8 -8 -7 -7 -7 -7 -6 -6 -6 ------- Run | Scr Mat Min Mat Min Exi Min Mat Fac Gar Fac Gar Fac Gar Fac Combat Hostiles Destroyed 183 | . 18 5 25 12 . 3 37 6 6 . 29 9 16 17 Guns 81 | . 17 5 25 12 . 1 6 . 1 . 2 7 5 . Cannons 67 | . . . . . . . 21 6 5 . 14 . 8 13 AOE 23 | . . . . . . 2 6 . . . 13 . . 2 Classes Destroyed 17 | . 4 1 3 2 . . 5 1 1 . . . . . Worker 8 | . . . 1 . . . 6 1 . . . . . . Builder 1 | . . . . . . . 1 . . . . . . . Tunneler 1 | . . . . . . . 1 . . . . . . . Hauler 5 | . 1 . 1 . . . 2 . . . . . . 1 Recycler 7 | . 1 . 1 1 . . 2 . . . . 1 . 1 Operator 1 | . . . 1 . . . . . . . . . . . Watcher 3 | . . . . . . . 1 1 . . . . . 1 Swarmer 44 | . 9 . 6 3 . . 5 3 1 . 11 . 3 3 Grunt 82 | . 9 . 9 6 . 2 21 1 2 . 15 2 10 5 Brawler 7 | . . . . 1 . 1 2 . . . 2 1 . . Duelist 2 | . . . . 1 . . . . . . . . . 1 Sentry 23 | . . . 10 . . . 6 1 1 . 1 1 2 1 Specialist 7 | . . . . . . . 2 . . . . . 1 4 Hunter 5 | . . . . . . . . . 2 . . 2 . 1 Programmer 6 | . . . . . . . . 1 . . . 3 . 2 Heavy 1 | . . . . . . . 1 . . . . . . . Assembled 6 | . . 5 . 1 . . . . . . . . . . Thug 1 | . . . . . . . . . . . . . . 1 Best Kill Streak 8 | . 6 2 4 4 . 3 6 3 3 . 8 3 8 5 Combat Bots Only 8 | . 6 2 4 3 . 3 4 3 3 . 8 2 8 5 Max Kills in Single Turn 3 | . 1 1 2 1 . 2 2 1 1 . 3 1 1 1 Gunslinging 1 | . . . 1 . . . . . . . . . . . Exploded 3 | . . . . . . 1 2 . . . 3 . . 1 Melee . | . . . . . . . . . . . . . . . Uniques/NPCs Destroyed . | . . . . . . . . . . . . . . . Combat | -11 -10 -10 -9 -9 -9 -8 -8 -7 -7 -7 -7 -6 -6 -6 -------- Run | Scr Mat Min Mat Min Exi Min Mat Fac Gar Fac Gar Fac Gar Fac Damage Taken 14330 | . 704 472 895 407 . 106 2943 271 325 . 1455 1498 2721 2533 Core 1777 | . 91 122 182 36 . 20 308 4 70 . 77 87 433 347 Absorbed by Shields 1154 | . . . . . . . . 124 128 . 320 333 194 55 Redirected to Shielding 159 | . . . 5 . . . 154 . . . . . . . Core Remaining (%) 55 | 100 . 14 . . . 40 44 . . . 78 . . . Volleys Fired 593 | . 56 28 76 32 . 2 124 23 16 . 68 51 62 55 Largest 2 | . 2 2 2 2 . 2 2 2 2 . 2 2 2 1 Hottest 150 | . 100 90 46 79 . 86 150 140 144 . 128 149 120 120 Shots Fired 996 | . 109 43 149 63 . 4 226 44 32 . 95 92 84 55 Gun 637 | . 109 43 149 62 . 2 102 2 16 . 26 89 37 . Cannon 310 | . . . . . . . 111 42 16 . 56 . 40 45 Launcher 36 | . . . . 1 . 2 13 . . . 13 . . 7 Special 13 | . . . . . . . . . . . . 3 7 3 Kinetic 379 | . . 15 149 52 . . 19 3 16 . 56 17 39 13 Thermal 546 | . 109 28 . 10 . 2 173 40 16 . 26 72 38 32 Explosive 29 | . . . . 1 . 2 13 . . . 13 . . . Electromagnetic 29 | . . . . . . . 21 1 . . . . . 7 Robot Hit Streak 29 | . 12 7 17 17 . 9 24 9 7 . 15 17 16 29 Robot Miss Streak 6 | . 4 4 5 3 . . 3 6 4 . 4 4 5 3 Penetration Max . | . . . . . . . . . . . . . . . Secondary Targets 5 | . . 1 2 1 . . . . . . . 1 . . Max Gunslinging Chain 1 | . . 1 1 1 . . . . . . . 1 . . Shots Hit Robots 694 | . 71 24 99 41 . 3 181 27 25 . 66 64 55 38 Core Hits 395 | . 31 12 48 19 . 7 89 9 17 . 60 30 29 44 Critical Kills 2 | . . . 2 . . . . . . . . . . . Critical Parts Destroyed . | . . . . . . . . . . . . . . . Critical Strikes 22 | . 5 1 2 1 . . 7 . . . 2 2 . 2 Burn 16 | . 5 1 . 1 . . 7 . . . . 2 . . Destroy 2 | . . . 2 . . . . . . . . . . . Blast 4 | . . . . . . . . . . . 2 . . 2 Melee Attacks 2 | . . . . . . . . . . . . 2 . . Impact 2 | . . . . . . . . . . . . 2 . . Slashing . | . . . . . . . . . . . . . . . Piercing . | . . . . . . . . . . . . . . . Sneak Attacks . | . . . . . . . . . . . . . . . Combat Hostiles . | . . . . . . . . . . . . . . . Follow-up Attacks . | . . . . . . . . . . . . . . . Damage Inflicted 18051 | . 901 248 1264 689 . 176 5201 828 508 . 2655 1439 1471 2671 Guns 6798 | . 901 248 1258 671 . 29 1353 . 230 . 396 1424 288 . Cannons 7594 | . . . . . . . 2474 814 278 . 986 . 1183 1859 Explosions 3570 | . . . . 12 . 147 1338 . . . 1273 . . 800 Melee . | . . . . . . . . . . . . . . . Ramming 89 | . . . 6 6 . . 36 14 . . . 15 . 12 Kinetic 4764 | . . 77 1258 553 . . 343 24 269 . 986 218 333 703 Thermal 9335 | . 901 171 . 118 . 29 3191 790 239 . 396 1206 1138 1156 Explosive 2711 | . . . . 12 . 147 1279 . . . 1273 . . . Electromagnetic 1152 | . . . . . . . 352 . . . . . . 800 Impact . | . . . . . . . . . . . . . . . Slashing . | . . . . . . . . . . . . . . . Piercing . | . . . . . . . . . . . . . . . Highest Corruption 13 | . . 13 . . . . 2 5 5 5 5 7 12 13 Average Corruption 6 | . . 12 . . . . 2 5 5 5 5 5 9 12 Corruption Purged . | . . . . . . . . . . . . . . . Corruption Blocked . | . . . . . . . . . . . . . . . Effects 245 | . . 21 . . . . 20 11 12 2 58 28 50 43 Message Errors 48 | . . 2 . . . . 3 5 4 . 10 5 8 11 Matter Fused 64 | . . 4 . . . . 3 2 4 1 19 6 14 11 Heat Flow Errors 34 | . . 3 . . . . 5 2 1 1 7 4 7 4 Energy Discharges 32 | . . 5 . . . . 5 1 . . 5 4 6 6 Parts Rejected 4 | . . 1 . . . . . . . . 1 1 1 . Data Loss (minor) 37 | . . 4 . . . . 3 1 2 . 7 4 8 8 Data Loss (major) 12 | . . . . . . . 1 . 1 . 4 1 3 2 Misfires 8 | . . . . . . . . . . . 4 2 2 . Alerts 2 | . . . . . . . . . . . 1 . 1 . Misdirections 1 | . . . . . . . . . . . . . . 1 Weapon Failures 3 | . . 2 . . . . . . . . . 1 . . Overload Shots . | . . . . . . . . . . . . . . . Overflow Damage 166 | . . . . . . . 77 17 . . 57 . . 15 Projectiles 75 | . . . . . . . 43 17 . . 5 . . 10 Explosions 91 | . . . . . . . 34 . . . 52 . . 5 Melee . | . . . . . . . . . . . . . . . Knockbacks 27 | . . . 1 . . . . . 1 . 6 . 12 7 Impact 1 | . . . 1 . . . . . . . . . . . Kinetic 25 | . . . . . . . . . 1 . 6 . 12 6 Secondary 1 | . . . . . . . . . . . . . . 1 Self-Inflicted Damage 310 | . . . . 53 . 56 123 . . . 78 . . . Shots 11 | . . . . 1 . 2 5 . . . 3 . . . Rammed 4 | . . . . . . . 2 2 . . . . . . Targets Rammed 13 | . . 1 1 1 . . 3 3 . . . 2 . 2 Kicked 7 | . . 1 1 1 . . . . . . . 2 . 2 Crushed 2 | . . . . . . . 1 1 . . . . . . Highest Temperature 486 | . 486 269 23 168 . 18 476 225 58 104 145 336 418 320 Average Temperature 97 | . 170 112 4 63 . 15 97 33 13 104 32 103 95 101 Received Heat Transfer 4156 | . 234 . 300 75 . 27 1413 36 146 . 587 398 819 121 Effects 19 | . 8 1 . . . . 6 . . . . . 1 3 Shutdowns 4 | . 2 . . . . . 1 . . . . . 1 . Energy Bleed 3 | . 1 1 . . . . 1 . . . . . . . Interference 8 | . 1 . . . . . 4 . . . . . . 3 Damage (minor) 2 | . 2 . . . . . . . . . . . . . Damage (major) 2 | . 2 . . . . . . . . . . . . . Siege Activations . | . . . . . . . . . . . . . . . Robots Corrupted . | . . . . . . . . . . . . . . . Combat Hostiles . | . . . . . . . . . . . . . . . Parts Fried 2 | . . . . . . . . . . . . . 2 . Impact Corruptions . | . . . . . . . . . . . . . . . Robots Melted 12 | . 1 . . . . . 4 . . . . 2 3 2 Combat Hostiles 12 | . 1 . . . . . 4 . . . . 2 3 2 Parts Melted 60 | . 8 . . . . . 18 1 3 . 1 12 7 10 Heat Transferred 19305 | . 2783 485 . 370 . 74 6093 1073 407 . 806 2384 2270 2560 Parts Sabotaged . | . . . . . . . . . . . . . . . Parts Stolen . | . . . . . . . . . . . . . . . Parts Stripped . | . . . . . . . . . . . . . . . Power Chain Reactions 1 | . . . . . . . 1 . . . . . . . Missiles Intercepted . | . . . . . . . . . . . . . . . Alert | -11 -10 -10 -9 -9 -9 -8 -8 -7 -7 -7 -7 -6 -6 -6 ------- Run | Scr Mat Min Mat Min Exi Min Mat Fac Gar Fac Gar Fac Gar Fac Peak Influence 985 | . 307 36 405 305 . 84 536 376 374 196 985 598 523 296 Initial 516 | . . 36 . 150 . . 32 235 154 196 137 516 170 274 Average 277 | . 139 2 212 133 . 82 227 225 260 196 644 396 327 213 Maximum Alert Level 3 | . 1 . 2 1 . . 2 1 1 . 3 2 2 1 Low Security (%) 46 | 100 87 100 51 87 . 100 57 35 36 100 2 . 15 46 Level 1 31 | . 12 . 34 12 . . 26 64 63 . 12 54 52 53 Level 2 18 | . . . 13 . . . 16 . . . 52 45 32 . Level 3 4 | . . . . . . . . . . . 32 . . . Level 4 . | . . . . . . . . . . . . . . . Level 5 . | . . . . . . . . . . . . . . . High Security . | . . . . . . . . . . . . . . . Max Security . | . . . . . . . . . . . . . . . Squads Dispatched 24 | . 5 . 3 . . . 5 2 . . . 3 . 6 Investigation 7 | . 3 . 1 . . . 1 1 . . . . . 1 Extermination 5 | . . . . . . . . 1 . . . 2 . 2 Reinforcement 11 | . 2 . 2 . . . 4 . . . . . . 3 Assault 1 | . . . . . . . . . . . . 1 . . Garrison . | . . . . . . . . . . . . . . . Intercept . | . . . . . . . . . . . . . . . Searches Triggered . | . . . . . . . . . . . . . . . Construction Impeded 1 | . . . . . . . . . . . . . . 1 Haulers Reinforced 1 | . . . . . . . . . . . . . . 1 Active Scanning Responses . | . . . . . . . . . . . . . . . Cargo Convoy Interrupts 1 | . . . . . . . . . . . . . . 1 Alert ID Control Effect 8 | . . . . . . . . . . . . . 1 7 Stealth | -11 -10 -10 -9 -9 -9 -8 -8 -7 -7 -7 -7 -6 -6 -6 --------- Run | Scr Mat Min Mat Min Exi Min Mat Fac Gar Fac Gar Fac Gar Fac Distress Signals 17 | . 2 . 4 . . . 8 2 . . . . . 1 Communications Jammed . | . . . . . . . . . . . . . . . Distress Signals . | . . . . . . . . . . . . . . . Times Spotted 293 | . 29 5 44 12 . 3 75 10 6 . 29 20 23 37 Peak Tracking Total 12 | . 4 2 6 3 . 3 9 4 3 . 8 4 8 12 Tactical Retreats 12 | . 1 . 4 . . . 3 1 . . 1 1 1 . Traps | -11 -10 -10 -9 -9 -9 -8 -8 -7 -7 -7 -7 -6 -6 -6 ------- Run | Scr Mat Min Mat Min Exi Min Mat Fac Gar Fac Gar Fac Gar Fac Traps Triggered 22 | . 2 . . . . . 3 . 5 . 7 2 2 1 Indirectly . | . . . . . . . . . . . . . . . Trap Hack Attempts . | . . . . . . . . . . . . . . . Triggered . | . . . . . . . . . . . . . . . Disarmed . | . . . . . . . . . . . . . . . Reprogrammed . | . . . . . . . . . . . . . . . Reused . | . . . . . . . . . . . . . . . Traps Extracted . | . . . . . . . . . . . . . . . Installed . | . . . . . . . . . . . . . . . Triggered . | . . . . . . . . . . . . . . . Machines | -11 -10 -10 -9 -9 -9 -8 -8 -7 -7 -7 -7 -6 -6 -6 ---------- Run | Scr Mat Min Mat Min Exi Min Mat Fac Gar Fac Gar Fac Gar Fac Machines Disabled 11 | . . . . . . . 4 . 1 . 4 . 2 . Max in Single Turn 1 | . . . . . . . 1 . 1 . 1 . 1 . Garrison Relay 7 | . . . . . . . . . 1 . 4 . 2 . Machines Sabotaged . | . . . . . . . . . . . . . . . Garrisons Compromised . | . . . . . . . . . . . . . . . Overloaded Fab Kills . | . . . . . . . . . . . . . . . Hacking | -11 -10 -10 -9 -9 -9 -8 -8 -7 -7 -7 -7 -6 -6 -6 --------- Run | Scr Mat Min Mat Min Exi Min Mat Fac Gar Fac Gar Fac Gar Fac Machines Accessed 35 | . 7 1 4 1 1 . 7 3 . 1 . 3 . 7 Terminals 19 | . 6 . 2 1 . . 5 1 . . . . . 4 Fabricators 2 | . . . . . . . . . . . . 1 . 1 Repair Stations 1 | . . . . . . . . . . . . 1 . . Recycling Units 6 | . 1 . 1 . . . 1 1 . . . . . 2 Scanalyzers 2 | . . . 1 . . . 1 . . . . . . . Garrison Access 3 | . . . . . . . . 1 . 1 . 1 . . Total Hacks 78 | . 20 1 11 3 1 . 12 7 . 2 . 7 . 14 Successful 40 | . 7 1 6 2 1 . 7 3 . 2 . 3 . 8 Failed 37 | . 13 . 5 1 . . 4 4 . . . 4 . 6 Catastrophic 4 | . 1 . 1 . . . . . . . . . . 2 Database Lockouts 1 | . . . . . . . 1 . . . . . . . Manual 34 | . 16 . 1 2 1 . 8 1 . . . . . 5 Terminals 42 | . 17 . 6 3 . . 7 1 . . . . . 8 Fabricators 4 | . . . . . . . . . . . . 3 . 1 Repair Stations 3 | . . . . . . . . . . . . 3 . . Recycling Units 13 | . 3 . 1 . . . 3 1 . . . . . 5 Scanalyzers 6 | . . . 4 . . . 2 . . . . . . . Garrison Access 8 | . . . . . . . . 5 . 2 . 1 . . Terminal Hacks 13 | . 4 1 2 2 1 . 2 1 . . . . . . Record 1 | . 1 . . . . . . . . . . . . . Part Schematic 1 | . . . . 1 . . . . . . . . . . Robot Analysis 4 | . 2 . 1 . . . 1 . . . . . . . Open Door 1 | . . 1 . . . . . . . . . . . . Open DSF 1 | . . . . . . . . 1 . . . . . . Alert Level 2 | . . . 1 . . . 1 . . . . . . . Patrol Status 1 | . . . . 1 . . . . . . . . . . Zone Layout 1 | . 1 . . . . . . . . . . . . . EX-Prototype ID Bank 1 | . . . . . 1 . . . . . . . . . Fabricator Hacks 2 | . . . . . . . . . . . . 1 . 1 Build 2 | . . . . . . . . . . . . 1 . 1 Repair Station Hacks 1 | . . . . . . . . . . . . 1 . . Scan Component 1 | . . . . . . . . . . . . 1 . . Recycling Unit Hacks 5 | . . . . . . . 2 . . . . . . 3 Report Inventory 3 | . . . . . . . 1 . . . . . . 2 Retrieve Components 2 | . . . . . . . 1 . . . . . . 1 Scanalyzer 5 | . . . 3 . . . 2 . . . . . . . Insert Component 2 | . . . 1 . . . 1 . . . . . . . Analyze 3 | . . . 2 . . . 1 . . . . . . . Garrison Access Hacks 4 | . . . . . . . . 1 . 2 . 1 . . Unlock Access 3 | . . . . . . . . 1 . 1 . 1 . . Coupler Status 1 | . . . . . . . . . . 1 . . . . Unauthorized Hacks 10 | . 3 . 1 . . . 1 1 . . . . . 4 Terminals 4 | . 2 . . . . . . . . . . . . 2 Botnet 3 | . 2 . . . . . . . . . . . . 1 Operators 1 | . . . . . . . . . . . . . . 1 Fabricators . | . . . . . . . . . . . . . . . Repair Stations . | . . . . . . . . . . . . . . . Recycling Units 6 | . 1 . 1 . . . 1 1 . . . . . 2 Reject 6 | . 1 . 1 . . . 1 1 . . . . . 2 Scanalyzers . | . . . . . . . . . . . . . . . Garrison Access . | . . . . . . . . . . . . . . . Data Cores Recovered 1 | . . . 1 . . . . . . . . . . . Used . | . . . . . . . . . . . . . . . Hacking Detections 27 | . 7 . 4 1 . . 5 1 . 1 . 2 . 6 Full Trace Events 6 | . 2 . 1 . . . 1 1 . . . . . 1 Feedback Events . | . . . . . . . . . . . . . . . Feedback Blocked . | . . . . . . . . . . . . . . . Robot Schematics Acquired . | . . . . . . . . . . . . . . . Robots Built 2 | . . . . . . . . . . . . . . 2 Authchips . | . . . . . . . . . . . . . . . Time 67 | . . . . . . . . . . . . . . 67 Total Robot Build Rating 8 | . . . . . . . . . . . . . . 8 Part Schematics Acquired 2 | . . . . 1 . . 1 . . . . . . . Parts Built 2 | . . . . . . . . . . . . 2 . . Authchips . | . . . . . . . . . . . . . . . Time 58 | . . . . . . . . . . . . 58 . . Total Part Build Rating 14 | . . . . . . . . . . . . 14 . . Parts Repaired . | . . . . . . . . . . . . . . . Time . | . . . . . . . . . . . . . . . Parts Recycled . | . . . . . . . . . . . . . . . Recycled Matter . | . . . . . . . . . . . . . . . Retrieved Matter . | . . . . . . . . . . . . . . . Retrieved Components 19 | . . . . . . . 10 . . . . . . 9 Parts Scanalyzed 2 | . . . 1 . . . 1 . . . . . . . Part Schematics Acquired 1 | . . . . . . . 1 . . . . . . . Parts Damaged . | . . . . . . . . . . . . . . . Bothacking | -11 -10 -10 -9 -9 -9 -8 -8 -7 -7 -7 -7 -6 -6 -6 ------------ Run | Scr Mat Min Mat Min Exi Min Mat Fac Gar Fac Gar Fac Gar Fac Used RIF Installer 3 | . . . . . . . . . 1 . 1 . 1 . Alert ID Control 1 | . . . . . . . . . . . 1 . . . Autooverride 1 | . . . . . . . . . . . . . 1 . Robots Hacked 5 | . . . . . . . . . . . . 1 2 2 Non-combat 2 | . . . . . . . . . . . . 1 . 1 Combat 3 | . . . . . . . . . . . . . 2 1 Robot Hacks Applied 5 | . . . . . . . . . . . . 1 2 2 ignore_repairs 1 | . . . . . . . . . . . . 1 . . drop_inventory 1 | . . . . . . . . . . . . . . 1 formatsys_high 3 | . . . . . . . . . . . . . 2 1 Relay Couplers Released 30 | . . . . . . . . . 5 . 18 . 7 . Machine Destruction 30 | . . . . . . . . . 5 . 18 . 7 . Attached 5 | . . . . . . . . . . . . 1 2 2 Fabnet Peak Effective % . | . . . . . . . . . . . . . . . Robots Rewired 6 | . . . . . . . . . . . . . 6 . Allies Hacked . | . . . . . . . . . . . . . . . Hacks Repelled . | . . . . . . . . . . . . . . . Allies | -11 -10 -10 -9 -9 -9 -8 -8 -7 -7 -7 -7 -6 -6 -6 -------- Run | Scr Mat Min Mat Min Exi Min Mat Fac Gar Fac Gar Fac Gar Fac Total Allies 14 | . . . . . . . . . . . . . 8 6 Largest Group 6 | . . . . . . . . . . . . . 6 5 Highest-Rated Group 256 | . . . . . . . . . . . . . 256 157 Highest-Rated Ally 46 | . . . . . . . . . . . . . 46 32 Total Orders . | . . . . . . . . . . . . . . . Ally Attacks 93 | . . . . . . . . . . . . . 25 68 Total Damage 2621 | . . . . . . . . . . . . . 924 1697 Kills 18 | . . . . . . . . . . . . . 6 12 Allies Corrupted 1 | . . . . . . . . . . . . . 1 . Allies Melted . | . . . . . . . . . . . . . . . Intel | -11 -10 -10 -9 -9 -9 -8 -8 -7 -7 -7 -7 -6 -6 -6 ------- Run | Scr Mat Min Mat Min Exi Min Mat Fac Gar Fac Gar Fac Gar Fac Robot Analysis Total 4 | . 2 . 1 . . . 1 . . . . . . . Derelict Logs Recovered 1 | . . 1 . . . . . . . . . . . . Drone Launches 16 | . . . . . . . 16 . . . . . . . Drone Recoveries . | . . . . . . . . . . . . . . . Exploration | -11 -10 -10 -9 -9 -9 -8 -8 -7 -7 -7 -7 -6 -6 -6 ------------- Run | Scr Mat Min Mat Min Exi Min Mat Fac Gar Fac Gar Fac Gar Fac Turns Passed 17741 | 46 1474 502 1794 1159 794 288 3775 745 519 186 2199 1414 1371 1475 Spaces Moved 7053 | 32 642 158 789 500 418 145 1426 261 184 41 673 548 561 675 Core 13 | 13 . . . . . . . . . . . . . . Treads 2120 | . . . . . . . 1330 261 184 41 296 . 8 . Legs 4815 | 19 642 158 789 500 418 145 47 . . . 377 492 553 675 Wheels 105 | . . . . . . . 49 . . . . 56 . . Hover . | . . . . . . . . . . . . . . . Flight . | . . . . . . . . . . . . . . . Fastest Speed 50 | 50 120 260 190 190 190 190 160 242 242 242 242 190 187 115 Average Speed 212 | 111 193 260 192 196 190 190 215 242 242 242 293 202 194 188 Slowest Speed 820 | 200 260 260 260 260 190 190 560 242 242 242 820 470 480 190 Overloaded Moves . | . . . . . . . . . . . . . . . Propulsion Burnouts . | . . . . . . . . . . . . . . . Robots Hopped . | . . . . . . . . . . . . . . . Cave-ins Triggered . | . . . . . . . . . . . . . . . Exploration Rate (%) 50 | 3 95 54 73 75 90 41 95 8 40 2 81 10 72 23 Regions Visited 14 Branch Regions 4 Pre-discovered Areas . | . . . . . . . . . . . . . . . Known Exits Taken 5 | . . 1 . . . . 1 1 . 1 . 1 . . Unknown Exits Taken 6 | 1 1 . 1 1 1 1 . . . . . . . . Scrap Searched 2 | . . . . . . 2 . . . . . . . . Spaces Dug 25 | . . . . . . . 22 1 . . . 2 . . Terrain Destroyed 208 | . . . . . . 21 93 2 . . 81 2 3 6 Melee 2 | . . . . . . . . . . . . 2 . . Projectile 24 | . . . . . . . 12 2 . . 1 . 3 6 AOE 182 | . . . . . . 21 81 . . . 80 . . . Terrain Rammed . | . . . . . . . . . . . . . . . Walls Destroyed . | . . . . . . . . . . . . . . . Machines Disabled . | . . . . . . . . . . . . . . . Actions | -11 -10 -10 -9 -9 -9 -8 -8 -7 -7 -7 -7 -6 -6 -6 --------- Run | Scr Mat Min Mat Min Exi Min Mat Fac Gar Fac Gar Fac Gar Fac Total 8833 | 39 760 205 930 612 418 152 1891 327 227 129 803 749 759 832 Wait 587 | . 35 4 8 69 . 1 219 18 11 89 8 75 23 27 Move 7036 | 31 641 157 788 499 417 144 1425 260 182 40 671 547 559 675 Hop . | . . . . . . . . . . . . . . . Pick Up 148 | 2 13 7 22 1 1 1 30 7 2 . 7 18 22 15 Fast Attach 68 | 6 2 3 4 . . 1 17 4 . . 7 8 10 6 Attach 75 | . 6 4 5 2 . 1 18 3 . . 4 11 11 10 Detach 4 | . . . . . . . . 1 . . . . . 3 Swap 106 | . 6 1 8 6 . 2 24 3 4 . 7 17 14 14 Drop 121 | . 1 . 18 2 . . 31 5 2 . 7 13 17 25 Fire 593 | . 56 28 76 32 . 2 124 23 16 . 68 51 62 55 Melee 2 | . . . . . . . . . . . . 2 . . Ram . | . . . . . . . . . . . . . . . Kick 7 | . . 1 1 1 . . . . . . . 2 . 2 Crush 6 | . . . . . . . 3 3 . . . . . . Escape Stasis 48 | . . . . . . . . . 10 . 23 5 10 . Rewire 32 | . . . . . . . . . . . 1 . 31 . Trap . | . . . . . . . . . . . . . . . Miscellaneous . | . . . . . . . . . . . . . . . Route ------- -11/Scrapyard -10/Materials (discovered 4 exits: *Mat x3 / *Min) -10/Mines (discovered 2 exits: *Mat x2) -9/Materials (discovered 4 exits: *Mat x2 / *Min x2) -9/Mines (discovered 2 exits: *Mat / *Exi) -9/Exiles -8/Mines -8/Materials (discovered 3 exits: *Fac x3) -7/Factory -7/Garrison -7/Factory -7/Garrison (discovered 3 exits: *Fac x3) -6/Factory -6/Garrison (discovered 2 exits: *Fac x2) -6/Factory (discovered 1 exit: *Fac) History --------- Turn | Location | Event 22 | -11/Scrapyard | Discovered new exit (range 16) 47 | -11/Scrapyard | Entered Materials 235 | -10/Materials | Discovered new exit (range 3) 329 | -10/Materials | Build established: Mutant 402 | -10/Materials | Discovered new exit (range 16) 803 | -10/Materials | Lost 4 parts (1p2n1w) 1317 | -10/Materials | Discovered new exit (range 7) 1370 | -10/Materials | Discovered new exit (range 15) 1521 | -10/Materials | Entered Mines 1522 | -10/Mines | Assembled infested the area 1579 | -10/Mines | Core integrity fell below 50% 1585 | -10/Mines | System corruption reached 10% 1615 | -10/Mines | Lost 5 parts (2n1u2w) 1616 | -10/Mines | Core integrity fell below 20% 1631 | -10/Mines | Identified exit to Materials 1951 | -10/Mines | Found a damaged Exp. Sensor Array with a note attached 1953 | -10/Mines | Discovered exit to Materials (range 11) 1956 | -10/Mines | Found Prototype Device 1963 | -10/Mines | Build established: Scavenger-Mutant 1989 | -10/Mines | Found the Drone Emporium 2001 | -10/Mines | Found Prototype Device 2023 | -10/Mines | Entered Materials 2023 | -9/Materials | Evolved 2 slots: Propulsion x1, Utility x1 2203 | -9/Materials | Discovered new exit (range 7) 2468 | -9/Materials | Discovered new exit (range 14) 2951 | -9/Materials | Discovered new exit (range 14) 3231 | -9/Materials | Discovered new exit (range 3) 3290 | -9/Materials | Identified Exp. Sensor Array 3817 | -9/Materials | Entered Mines 3865 | -9/Mines | Discovered new exit (range 10) 4478 | -9/Mines | Excavation squad dispatched 4478 | -9/Mines | A large section of the Mines collapsed 4845 | -9/Mines | Core integrity fell below 50% 4962 | -9/Mines | Deemed a non-threat by the Exiles lab entrance 4964 | -9/Mines | Discovered new exit (range 5) 4976 | -9/Mines | Entered Exiles 5030 | -9/Exiles | Met 8R-AWN 5058 | -9/Exiles | Met EX-HEX 5115 | -9/Exiles | Met EX-BIN 5136 | -9/Exiles | Aligned with FarCom system 5138 | -9/Exiles | Given EX-Vault access code 5182 | -9/Exiles | Opened EX-Vault 5231 | -9/Exiles | Found Gui. Plasma Cannon 5268 | -9/Exiles | Warned to stay clear of 0b10 Research branches 5321 | -9/Exiles | Met EX-DEC 5446 | -9/Exiles | Visited The Gauntlet 5745 | -9/Exiles | Discovered new exit (range 14) 5770 | -9/Exiles | Left Exiles lab with Gui. Plasma Cannon 5770 | -9/Exiles | Entered Mines 6046 | -8/Mines | Discovered new exit (range 4) 6058 | -8/Mines | Entered Materials 6058 | -8/Materials | Evolved 2 slots: Propulsion x1, Utility x1 6222 | -8/Materials | Central database locked down 6445 | -8/Materials | Build established: Mutant 7216 | -8/Materials | Discovered new exit (range 6) 7296 | -8/Materials | Lost 4 parts (4n) 7553 | -8/Materials | Build established: Scavenger-Mutant 7903 | -8/Materials | Discovered new exit (range 16) 8453 | -8/Materials | Identified Decoy Drone Bay 8893 | -8/Materials | Discovered new exit (range 15) 9504 | -8/Materials | Core integrity fell below 50% 9586 | -8/Materials | Identified exit to Factory 9833 | -8/Materials | Entered Factory 9833 | -7/Factory | Evolved 2 slots: Propulsion x1, Utility x1 10529 | -7/Factory | Build established: Mutant 10576 | -7/Factory | Identified exit to Garrison 10578 | -7/Factory | Entered Garrison 10591 | -7/Garrison | Installed Relay Interface Framework 10746 | -7/Garrison | Triggered checkpoint 10746 | -7/Garrison | Triggered checkpoint 10968 | -7/Garrison | Triggered checkpoint 10996 | -7/Garrison | Garrison Relay disabled 11063 | -7/Garrison | Discovered new exit (range 10) 11097 | -7/Garrison | Entered Factory 11105 | -7/Factory | Build established: Scavenger-Mutant 11281 | -7/Factory | Identified exit to Garrison 11283 | -7/Factory | Entered Garrison 11396 | -7/Garrison | Triggered checkpoint 11461 | -7/Garrison | Garrison Relay disabled 11642 | -7/Garrison | Triggered checkpoint 11644 | -7/Garrison | Destroyed 8 combat bots 11704 | -7/Garrison | Triggered checkpoint 11778 | -7/Garrison | Garrison Relay disabled 11865 | -7/Garrison | Discovered new exit (range 10) 11892 | -7/Garrison | Build established: Mutant 12392 | -7/Garrison | Triggered checkpoint 12469 | -7/Garrison | Build established: Scavenger-Mutant 12486 | -7/Garrison | Garrison Relay disabled 12560 | -7/Garrison | Discovered new exit (range 14) 12750 | -7/Garrison | Triggered checkpoint 12840 | -7/Garrison | Triggered checkpoint 12881 | -7/Garrison | Lost 3 parts (1n2u) 13148 | -7/Garrison | Discovered new exit (range 11) 13208 | -7/Garrison | Expanded RIF knowledge: Alert ID Control 13278 | -7/Garrison | Triggered checkpoint 13320 | -7/Garrison | Garrison Relay disabled 13482 | -7/Garrison | Entered Factory 13482 | -6/Factory | Evolved 2 slots: Propulsion x1, Utility x1 13689 | -6/Factory | Fabricated Adv. Coolant Injector? 13736 | -6/Factory | Lost 4 parts (1p3n) 13832 | -6/Factory | First assault squad dispatched 14065 | -6/Factory | Lost 4 parts (1n2u1w) 14891 | -6/Factory | Identified exit to Garrison 14896 | -6/Factory | Entered Garrison 15306 | -6/Garrison | Triggered checkpoint 15307 | -6/Garrison | Triggered checkpoint 15307 | -6/Garrison | Triggered checkpoint 15406 | -6/Garrison | Triggered checkpoint 15431 | -6/Garrison | Lost 12 parts (6n3u3w) 15456 | -6/Garrison | Core integrity fell below 50% 15487 | -6/Garrison | Destroyed 8 combat bots 15504 | -6/Garrison | System corruption reached 10% 15780 | -6/Garrison | Triggered checkpoint 15817 | -6/Garrison | Garrison Relay disabled 15905 | -6/Garrison | Discovered new exit (range 10) 15935 | -6/Garrison | Expanded RIF knowledge: Autooverride 16064 | -6/Garrison | Triggered checkpoint 16097 | -6/Garrison | Garrison Relay disabled 16154 | -6/Garrison | Discovered new exit (range 14) 16248 | -6/Garrison | Build established: Bothacker-Mutant 16267 | -6/Garrison | Entered Factory 16267 | -6/Factory | Accompanied by 1 ally 16724 | -6/Factory | Fabricated Y-54 Guardian (x2) 16991 | -6/Factory | Discovered new exit (range 10) 17012 | -6/Factory | Identified exit to Factory 17100 | -6/Factory | Allied Derelicts emerged from ambush trap array 17679 | -6/Factory | Cargo convoy interrupted 17707 | -6/Factory | Core integrity fell below 20% 17742 | -6/Factory | Destroyed by H-66 Slayer with Gauss Rifle Last Messages --------------- 17735_ K-01 Serf collects debris. 17735_ Penetrated by Slug. 17736_ H-66 Slayer Flexi-carbon Leg blasted off. 17736_ H-66 Slayer destroyed. 17736_ Penetrated by Slug. 17736_ Critical hit (Destroy). 17736_ Arm. Leg destroyed. 17738_ K-01 Serf collects debris. 17738_ U-05 Engineer builds a Wall. 17739_ Penetrated by Slug. 17739_ Critical hit (Destroy). 17739_ Tri-rail Accelerator destroyed. 17739_ Slug penetrates Wall. 17739_ K-01 Serf cleans the Nuclear Reactor. 17741_ K-01 Serf collects debris. 17742_ Acquired Tri-rail Accelerator. 17742_ R-10 Processor collects Shock Rifle. 17742_ Slug penetrates Wall. 17742_ Arm. Leg destroyed. 17742_ Slug penetrates Wall. Map ----- +----------------------------------------------------+ | " # " "[" " ##############?????????????????????? | | " # " " " " # #?????????????????????? | | " + " " " " # #?????????????????????? | | # " " " " + #?????????????????????? | | # " " " " # #?????????????????????? | | ### " " " " # #?????????????????????? | | # " " " " # """" #?????????????????????? | | # # """" #?????????????????????? | | # # """" #####?????????????????? | | " # # """" # ???????????????? | | " # # """" # """ #??????????????? | | " + / """" ""T"" #| """ #??????????????? | | # # """"" # """ #??????????????? | | " # *% ############## #??????????????? | | " # ######+#######???????# """ #??????????????? | | " + # !!= *#???????# """ #??????????????? | | ###?# % ######### """ #??????????????? | | ??#???# """ """ +% + #??????????????? | | #?????# """ """ ####### # """ #??????????????? | | ??????# """ """ #?????# # """ #??????????????? | | ??????# #?????#!# """ #??????????????? | | ??????# """ """ %#?????#t# #??????????????? | | ??????# w""" """ #######!#####+##??????????????# | | ??????# """ """ + %!=%[[#?### ##??????????? | | ??????# ####|w!k# #*=##??????? | | ??????# #%[%!!@!%##!!!#"###### | | ??????# # #/!]]!=h!i!%!![!%= | | ??????#################!=%###h* !!=%%= [ | | ???????????# !%=!= %!#!== [!= R % | | ???????????# =!%! %+ = !%! % | | ???????????# = ###########% | | ???????????# """ """ """ """ #?????## #??? | | ???????????????"" """k""" """ #????????#????? | | ??????????????""" """ """ """ #????????????????? | | ?????????????? #??????????????????? | | ????????????? #??????????????????? | | ?????????????######A#R#########??????????????????? | | ??????????????????# ???????????????????????????? | | ??????????????????#? ???????????????????????????? | | ?????????????????????????????????????????????????? | | ?????????????????????????????????????????????????? | | ?????????????????????????????????????????????????? | | ?????????????????????????????????????????????????? | | ?????????????????????????????????????????????????? | | ?????????????????????????????????????????????????? | | ?????????????????????????????????????????????????? | | ?????????????????????????????????????????????????? | | ?????????????????????????????????????????????????? | | ?????????????????????????????????????????????????? | | ?????????????????????????????????????????????????? | +----------------------------------------------------+ Best States ------------- Heat Dissipation 70 Coolant Potential 100 Energy Generation 21 Energy Capacity 490 Matter Stores 300 Matter Capacity 300 Sight Range 22 Terrain Scan Density 85 Armor Coverage 600 Resistance: KI 20 Core Shielding 20 Propulsion Shielding 66 Evasion (%) 55 Targeting Accuracy 5 Armor Integrity Analysis 30 Recoil Reduction 5 Particle Charging 20 Offensive Hacking 10 Relay Coupler Types 3 Relay Coupler Value 49 Item Schematics ----------------- Hcp. Storage Unit | -9/Mines | Hacked Hvy. Armor Plating | -8/Materials | Scanalyzed Robot Schematics ------------------ None Fabricated ------------ Adv. Coolant Injector | x2 | -6/Factory | Preloaded Y-54 Guardian | x2 | -6/Factory | Preloaded Alien Tech Used ----------------- None Achievements -------------- None Challenges ------------ None Game ------ Seed PrecisionTeslaSaw Manual? 0 Play Time 02:34:18 Cumulative 31.8 hours Start 2022.04.24 @ 18:53:02 End 2022.04.24 @ 21:47:58 Sessions 1 Manual Loads 0 Difficulty Rogue Special Mode None Game No. 21 Rogue 21 Adventurer 0 Explorer 0 Win Type - Total 0 Types 0/0/0/0/0/0/0/0/0 Lore% 14 Gallery% 33 Achievement% 67 Wizard Run 0 Options --------- ASCII 0 Keyboard 0 Movement Numpad Keybinds 0 Fullscreen 1 Font 24/Smallcaps Map View 76x50 Tactical HUD 1 Map Filters NONE Filters LOW_CONTRAST(47,30,31) Steam 1 RUN: 33c474cf-050f-42dc-80df-57a56aeb0a7f